bitfinex/quotes_BTCUSD_20251031
["timestamp","ask_amount","ask_price","bid_price","bid_amount"]
[1761873486114,0.21209651,110090.0,110080.0,0.50626901]
[1761873486815,0.26555651,110090.0,110080.0,0.43181901]
[1761873486964,0.26555651,110090.0,110080.0,0.09181901]
[1761873488170,0.71209785,110090.0,110080.0,0.09181901]
[1761873488982,0.18170255,110070.0,110040.0,0.02729534]
[1761873489177,0.19082152,110060.0,110050.0,0.08981901]
[1761873489436,0.27101152,110060.0,110050.0,0.08981901]
[1761873489553,0.31360152,110060.0,110050.0,0.08981901]
[1761873490621,0.26014152,110060.0,110050.0,0.08981901]
[1761873491203,0.30865152,110060.0,110050.0,0.08981901]
[1761873492075,0.75519286,110060.0,110050.0,0.001]
[1761873492952,0.1817686,110030.0,110020.0,0.40574]
[1761873493159,0.1817686,110030.0,110020.0,0.49555901]
[1761873493372,0.1817686,110030.0,110020.0,0.53658901]
[1761873494190,0.18190011,110030.0,110020.0,0.53658901]
[1761873494426,0.24330011,110030.0,110020.0,0.47084901]
[1761873494657,0.20368011,110030.0,110020.0,0.47084901]
[1761873494863,0.20368011,110030.0,110020.0,0.53174901]
[1761873495071,0.20368011,110030.0,110020.0,0.53274901]
[1761873495278,0.24330011,110030.0,110020.0,0.43581901]
[1761873495714,0.29181011,110030.0,110020.0,0.43081901]
[1761873496146,0.29181011,110030.0,110020.0,0.43381901]
[1761873497215,0.24330011,110030.0,110020.0,0.43381901]
[1761873497893,0.29061011,110030.0,110020.0,0.43381901]
[1761873499807,0.29061011,110030.0,110020.0,0.09381901]
[1761873500018,0.29061011,110030.0,110020.0,0.004]
[1761873500862,0.29061011,110030.0,110020.0,0.003]
[1761873501501,0.29061011,110030.0,110010.0,0.00126741]
[1761873501502,0.18178512,110020.0,110010.0,0.00126741]
[1761873501711,0.26187512,110020.0,110010.0,0.09108642]
[1761873502181,0.26187512,110020.0,110010.0,0.00126741]
[1761873502407,0.65022145,110030.0,110020.0,0.52178512]
[1761873502408,0.00013151,110030.0,110020.0,0.52178512]
[1761873502620,0.00013151,110030.0,110020.0,1.13519775]
[1761873502842,0.00013151,110030.0,110020.0,1.19402775]
[1761873503069,0.00013151,110030.0,110020.0,0.74748641]
[1761873503274,0.00013151,110030.0,110020.0,1.19402775]
[1761873503478,0.00013151,110030.0,110020.0,4.27276168]
[1761873503690,0.00013151,110030.0,110020.0,4.27376168]
[1761873504107,0.00013151,110030.0,110020.0,4.19402775]
[1761873504308,0.00013151,110030.0,110020.0,4.19702775]
[1761873504515,0.00013151,110030.0,110020.0,4.27376168]
[1761873504724,0.00013151,110030.0,110020.0,4.27976168]
[1761873504950,2.934e-05,110030.0,110020.0,4.94030301]
[1761873505161,2.934e-05,110030.0,110020.0,4.93430301]
[1761873505362,2.934e-05,110030.0,110020.0,4.85456908]
[1761873505536,2.934e-05,110030.0,110020.0,4.86256908]
[1761873505780,2.934e-05,110030.0,110020.0,4.97414042]
[1761873505990,2.934e-05,110030.0,110020.0,4.96614042]
[1761873506214,2.934e-05,110030.0,110020.0,4.97814042]
[1761873506824,2.934e-05,110030.0,110020.0,4.97414042]
[1761873507687,0.00022116,110060.0,110020.0,4.97414042]
[1761873507688,0.00022116,110060.0,110050.0,1.00445919]
[1761873507891,0.00022116,110060.0,110050.0,1.1658682]
[1761873508084,0.00022116,110060.0,110050.0,1.2246982]
[1761873508512,0.00022116,110060.0,110050.0,1.2519954]
[1761873508959,0.00022116,110060.0,110050.0,1.2579954]
[1761873509822,0.00022116,110060.0,110050.0,1.2609954]
[1761873510734,0.00022116,110060.0,110050.0,1.2599954]
[1761873510948,0.00022116,110060.0,110050.0,1.2609954]
[1761873511163,0.00022116,110060.0,110050.0,1.2599954]
[1761873511367,0.00022116,110060.0,110050.0,1.2609954]
[1761873513889,0.00022116,110060.0,110050.0,1.2599954]
[1761873514094,0.00022116,110060.0,110050.0,1.2609954]
[1761873514306,0.00022116,110060.0,110050.0,1.2599954]
[1761873514435,0.00022116,110060.0,110050.0,1.2609954]
[1761873515510,0.00022116,110060.0,110050.0,1.50007518]
[1761873517973,0.00022116,110060.0,110050.0,1.49907518]
[1761873518149,0.00022116,110060.0,110050.0,1.50007518]
[1761873519363,0.00022116,110060.0,110050.0,1.64577518]
[1761873521643,0.00022116,110060.0,110050.0,4.64577518]
[1761873522729,0.00022116,110060.0,110050.0,3.96015406]
[1761873522946,0.00022116,110060.0,110050.0,4.64577518]
[1761873523165,0.00022116,110060.0,110050.0,1.64577518]
[1761873526000,0.00022116,110060.0,110050.0,1.50007518]
[1761873526412,0.00022116,110060.0,110050.0,1.49907518]
[1761873526625,0.00022116,110060.0,110050.0,1.50007518]
[1761873526975,0.00022116,110060.0,110050.0,1.49907518]
[1761873527150,0.00022116,110060.0,110050.0,1.50007518]
[1761873530826,0.00022116,110060.0,110050.0,0.81345406]
[1761873531926,0.18194022,110060.0,110050.0,0.80745406]
[1761873532132,0.18194022,110060.0,110050.0,0.81245406]
[1761873532616,0.00022116,110060.0,110050.0,0.80945406]
[1761873533031,0.18194022,110060.0,110050.0,0.62971849]
[1761873533227,0.18194022,110060.0,110050.0,1.49707518]
[1761873533641,0.18194022,110060.0,110050.0,0.62971849]
[1761873533846,0.18194022,110060.0,110050.0,0.60342129]
[1761873534052,0.00022116,110060.0,110050.0,1.46977798]
[1761873534267,0.00022116,110060.0,110050.0,1.47077798]
[1761873535063,0.00022116,110060.0,110050.0,1.46577798]
[1761873535269,0.00022116,110060.0,110050.0,1.47177798]
[1761873535516,5.433e-05,110060.0,110050.0,1.47177798]
[1761873535721,5.433e-05,110060.0,110050.0,1.46977798]
[1761873535948,5.433e-05,110060.0,110050.0,1.47277798]
[1761873537130,5.433e-05,110060.0,110050.0,4.47277798]
[1761873537352,5.433e-05,110060.0,110050.0,4.47177798]
[1761873537580,5.433e-05,110060.0,110050.0,4.47277798]
[1761873540235,5.433e-05,110060.0,110050.0,4.47177798]
[1761873540447,5.433e-05,110060.0,110050.0,4.47277798]
[1761873541242,5.433e-05,110060.0,110050.0,4.49907253]
[1761873541443,5.433e-05,110060.0,110050.0,4.50007253]
[1761873542290,5.433e-05,110060.0,110050.0,1.50007253]
[1761873543161,5.433e-05,110060.0,110050.0,0.81445141]
[1761873543415,5.433e-05,110060.0,110050.0,1.50007253]
[1761873545038,5.433e-05,110060.0,110050.0,4.50007253]
[1761873545252,5.433e-05,110060.0,110050.0,4.49907253]
[1761873545455,5.433e-05,110060.0,110050.0,4.50007253]
[1761873545664,1.348e-05,110060.0,110050.0,4.49907253]
[1761873545870,1.348e-05,110060.0,110050.0,4.64577253]
[1761873546078,1.348e-05,110060.0,110050.0,1.64577253]
[1761873546490,1.348e-05,110060.0,110050.0,1.64477253]
[1761873546700,1.348e-05,110060.0,110050.0,1.64577253]
[1761873547122,1.348e-05,110060.0,110050.0,0.96015141]
[1761873547819,1.348e-05,110060.0,110050.0,0.93285686]
[1761873548472,1.348e-05,110060.0,110050.0,1.61847798]
[1761873549285,1.348e-05,110060.0,110050.0,0.93185686]
[1761873549497,1.348e-05,110060.0,110050.0,1.61847798]
[1761873549707,1.348e-05,110060.0,110050.0,1.61747798]
[1761873549929,1.348e-05,110060.0,110050.0,1.61847798]
[1761873550998,1.348e-05,110060.0,110050.0,0.93285686]
[1761873551496,1.348e-05,110060.0,110050.0,1.61847798]
[1761873551707,1.348e-05,110060.0,110050.0,0.93285686]
[1761873551918,1.348e-05,110060.0,110050.0,1.61847798]
[1761873552531,0.18170289,110070.0,110060.0,0.36998]
[1761873552731,0.18175117,110070.0,110060.0,0.74263807]
[1761873552942,0.18175117,110070.0,110060.0,0.56091901]
[1761873553981,0.23414117,110070.0,110060.0,0.49994901]
[1761873554180,0.27138117,110070.0,110060.0,0.43481901]
[1761873554803,0.23414117,110070.0,110060.0,0.43681901]
[1761873555154,0.23414117,110070.0,110060.0,0.47284901]
[1761873555601,0.19690117,110070.0,110060.0,0.56042901]
[1761873555803,0.19690117,110070.0,110060.0,0.74214807]
[1761873555804,4.828e-05,110070.0,110060.0,0.74214807]
[1761873556008,0.18175083,110070.0,110060.0,0.74214807]
[1761873556209,0.18175083,110070.0,110060.0,0.56042901]
[1761873557090,0.19710083,110070.0,110060.0,0.56042901]
[1761873557610,0.19710083,110070.0,110060.0,0.74214807]
[1761873557816,0.18175083,110070.0,110060.0,0.74214807]
[1761873558043,0.18197199,110070.0,110060.0,0.74214807]
[1761873558670,0.00026944,110070.0,110060.0,0.74214807]
[1761873558880,0.18197199,110070.0,110060.0,0.74214807]
[1761873559325,0.18197199,110070.0,110060.0,0.56042901]
[1761873559540,0.23476199,110070.0,110060.0,0.50156901]
[1761873560168,0.19732199,110070.0,110060.0,0.55697901]
[1761873560815,0.23476199,110070.0,110060.0,0.55697901]
[1761873561555,0.23476199,110070.0,110060.0,0.50156901]
[1761873561762,0.27220199,110070.0,110060.0,0.43681901]
[1761873562801,0.27220199,110070.0,110060.0,0.09681901]
[1761873563030,0.66495707,110070.0,110060.0,0.09681901]
[1761873563230,0.27220199,110070.0,110060.0,0.09681901]
[1761873563649,0.23476199,110070.0,110060.0,0.16590901]
[1761873564060,0.23476199,110070.0,110060.0,0.15890901]
[1761873564281,0.23476199,110070.0,110060.0,0.16190901]
[1761873564479,0.23476199,110070.0,110060.0,0.16290901]
[1761873569477,0.23476199,110070.0,110060.0,0.12348901]
[1761873570321,0.23476199,110070.0,110060.0,0.16184901]
[1761873570532,0.23476199,110070.0,110060.0,0.09381901]
[1761873570776,0.27012199,110070.0,110060.0,0.09381901]
[1761873574774,0.1817686,110030.0,110020.0,0.00126725]
[1761873574956,0.2346286,110030.0,110020.0,0.09108626]
[1761873575155,0.2699886,110030.0,110020.0,0.43108626]
[1761873575359,0.2346286,110030.0,110020.0,0.09108626]
[1761873575792,0.2346286,110030.0,110020.0,0.12944626]
[1761873575990,0.62784192,110030.0,110020.0,0.12944626]
[1761873576167,0.62784192,110030.0,110020.0,0.46944626]
[1761873576572,0.23471628,110030.0,110020.0,0.47144626]
[1761873576775,0.23471628,110030.0,110020.0,0.43808626]
[1761873577411,0.23471628,110030.0,110020.0,0.43308626]
[1761873577607,0.23471628,110030.0,110020.0,0.43608626]
[1761873577856,0.23471628,110030.0,110020.0,0.09408626]
[1761873577857,0.66320192,110030.0,110020.0,0.09408626]
[1761873578268,0.66320192,110030.0,110020.0,0.09508626]
[1761873578481,8.768e-05,110030.0,110020.0,0.21839626]
[1761873578701,8.768e-05,110030.0,110020.0,1.52743266]
[1761873579333,8.768e-05,110030.0,110020.0,1.52443266]
[1761873579529,8.768e-05,110030.0,110020.0,1.52343266]
[1761873579955,8.768e-05,110030.0,110020.0,1.52643266]
[1761873580163,8.768e-05,110030.0,110020.0,1.52443266]
[1761873580367,8.768e-05,110030.0,110020.0,1.52343266]
[1761873580574,0.18185628,110030.0,110020.0,0.56339626]
[1761873580777,8.768e-05,110030.0,110020.0,0.22339626]
[1761873580988,0.18185628,110030.0,110020.0,0.56339626]
[1761873581597,0.18185628,110030.0,110020.0,0.74518138]
[1761873582019,8.768e-05,110030.0,110020.0,1.13830702]
[1761873583476,0.18185628,110030.0,110020.0,0.74518138]
[1761873583860,0.18185628,110030.0,110020.0,1.13830702]
[1761873584811,8.768e-05,110030.0,110020.0,1.13830702]
[1761873587090,8.768e-05,110030.0,110020.0,1.13930702]
[1761873589334,0.01022115,110070.0,110020.0,1.13930702]
[1761873589532,0.00035277,110070.0,110060.0,1.45954935]
[1761873589700,0.00035277,110070.0,110060.0,1.49673163]
[1761873589916,0.00035277,110070.0,110060.0,1.55188163]
[1761873590105,0.00035277,110070.0,110060.0,0.76563035]
[1761873590361,0.00035277,110070.0,110060.0,1.55088163]
[1761873590662,0.00035277,110070.0,110060.0,1.55188163]
[1761873590826,0.00035277,110070.0,110060.0,1.57917613]
[1761873591247,0.00035277,110070.0,110060.0,1.58117613]
[1761873591454,0.00035277,110070.0,110060.0,1.24115292]
[1761873592385,0.00035277,110070.0,110060.0,1.24515292]
[1761873598056,0.00035277,110070.0,110060.0,1.24415292]
[1761873598275,0.00035277,110070.0,110060.0,1.24515292]
[1761873600161,0.00035277,110070.0,110060.0,0.76174257]
[1761873600398,0.00035277,110070.0,110060.0,0.73444807]
[1761873600399,0.18205532,110070.0,110060.0,0.73444807]
[1761873600602,0.19973532,110070.0,110060.0,0.73444807]
[1761873601048,0.19973532,110070.0,110060.0,0.55272901]
[1761873601254,0.23309532,110070.0,110060.0,0.49757901]
[1761873601891,0.23309532,110070.0,110060.0,0.09581901]
[1761873601892,0.26645532,110070.0,110060.0,0.09581901]
[1761873602099,0.26645532,110070.0,110060.0,0.43581901]
[1761873602742,0.23309532,110070.0,110060.0,0.43581901]
[1761873602959,0.19973532,110070.0,110060.0,0.70791807]
[1761873603173,0.18205532,110070.0,110060.0,0.70791807]
[1761873603839,0.00035277,110070.0,110060.0,0.70791807]
[1761873604054,0.18205532,110070.0,110060.0,0.70791807]
[1761873604320,0.00035277,110070.0,110060.0,0.70791807]
[1761873604548,0.18205532,110070.0,110060.0,0.70791807]
[1761873605126,0.18205532,110070.0,110060.0,0.52619901]
[1761873605551,0.18205532,110070.0,110060.0,0.70791807]
[1761873606020,0.00035277,110070.0,110060.0,1.15414614]
[1761873606234,0.00035277,110070.0,110060.0,1.15514614]
[1761873607517,0.00035277,110070.0,110060.0,1.30084614]
[1761873607728,0.00035277,110070.0,110060.0,1.15514614]
[1761873610761,0.18205532,110070.0,110060.0,1.15514614]
[1761873610969,0.18205532,110070.0,110060.0,0.52619901]
[1761873611185,0.18205532,110070.0,110060.0,1.15414614]
[1761873611390,0.00035277,110070.0,110060.0,1.49438633]
[1761873612495,0.00035277,110070.0,110060.0,0.56238129]
[1761873612700,0.18205532,110070.0,110060.0,0.91893314]
[1761873614788,0.00035277,110070.0,110060.0,1.49338633]
[1761873615008,0.18205532,110070.0,110060.0,1.49338633]
[1761873615636,0.00035277,110070.0,110060.0,1.49338633]
[1761873616033,0.18205532,110070.0,110060.0,1.49338633]
[1761873616275,0.00035277,110070.0,110060.0,1.53056861]
[1761873616692,0.17194165,110100.0,110080.0,0.73273413]
[1761873616907,0.18167728,110090.0,110080.0,0.76555413]
[1761873617112,0.18167728,110090.0,110080.0,0.81873413]
[1761873617528,0.18167728,110090.0,110080.0,1.00042017]
[1761873617933,0.18167728,110090.0,110080.0,0.81873413]
[1761873618138,0.19076075,110090.0,110080.0,0.81873413]
[1761873618938,0.19076075,110090.0,110080.0,0.82768653]
[1761873619570,0.19076075,110090.0,110080.0,1.00937257]
[1761873619976,0.19076075,110090.0,110080.0,1.01037257]
[1761873620388,0.21837075,110090.0,110080.0,0.341]
[1761873620602,0.24598075,110090.0,110080.0,0.341]
[1761873620808,0.21837075,110090.0,110080.0,0.341]
[1761873621001,0.21837075,110090.0,110080.0,0.43081901]
[1761873621204,0.21837075,110090.0,110080.0,0.46363901]
[1761873621436,0.21837075,110090.0,110080.0,0.85637314]
[1761873621641,0.21837075,110090.0,110080.0,0.43081901]
[1761873622878,0.21837075,110090.0,110080.0,0.46363901]
[1761873623086,0.23512075,110090.0,110080.0,0.88198314]
[1761873623359,0.23556294,110090.0,110080.0,0.88198314]
[1761873624594,0.23556294,110090.0,110080.0,0.93516314]
[1761873625184,0.23556294,110090.0,110080.0,0.88198314]
[1761873625777,0.23556294,110090.0,110080.0,1.06366918]
[1761873625979,0.20795294,110090.0,110080.0,0.93516314]
[1761873626389,0.23556294,110090.0,110080.0,0.93516314]
[1761873626611,0.23556294,110090.0,110080.0,0.88198314]
[1761873627046,0.20795294,110090.0,110080.0,1.11684918]
[1761873627702,0.00044219,110090.0,110080.0,1.50958331]
[1761873627914,0.00044219,110090.0,110080.0,1.90331744]
[1761873628122,0.00044219,110090.0,110080.0,1.54576559]
[1761873628325,0.00044219,110090.0,110080.0,1.54676559]
[1761873628544,0.00044219,110090.0,110080.0,1.54576559]
[1761873628764,0.00044219,110090.0,110080.0,4.93849972]
[1761873628983,0.00044219,110090.0,110080.0,4.94249972]
[1761873629615,0.00914219,110090.0,110080.0,4.94249972]
[1761873629831,0.00914219,110090.0,110080.0,4.93849972]
[1761873630251,0.00914219,110090.0,110080.0,4.94049972]
[1761873630464,0.00914219,110090.0,110080.0,4.93849972]
[1761873630913,0.18162078,110120.0,110110.0,0.91436617]
[1761873631120,0.18210341,110120.0,110110.0,1.03700518]
[1761873631344,0.18276645,110120.0,110110.0,1.09018518]
[1761873631554,0.00114567,110120.0,110110.0,1.09018518]
[1761873631777,0.18276572,110120.0,110110.0,1.09018518]
[1761873631994,0.00114567,110120.0,110110.0,1.09018518]
[1761873633247,0.00114567,110120.0,110110.0,1.09118518]
[1761873633879,0.00114567,110120.0,110110.0,1.09218518]
[1761873634084,0.00114567,110120.0,110110.0,1.09418518]
[1761873635148,0.00114567,110120.0,110110.0,1.11979518]
[1761873635554,0.00114567,110120.0,110110.0,1.11942827]
[1761873635769,0.00114567,110120.0,110110.0,1.11642827]
[1761873635964,0.00114567,110120.0,110110.0,1.12142827]
[1761873636746,0.00114567,110120.0,110110.0,1.12042827]
[1761873637176,0.00114567,110120.0,110110.0,1.12242827]
[1761873637959,0.18276572,110120.0,110110.0,1.12242827]
[1761873638174,0.18276572,110120.0,110110.0,1.12243277]
[1761873639422,0.18276572,110120.0,110110.0,0.73006555]
[1761873639828,0.18276572,110120.0,110110.0,1.12243277]
[1761873640592,0.18276572,110120.0,110110.0,0.73006555]
[1761873640793,0.20905572,110120.0,110110.0,0.49424901]
[1761873641135,0.18276572,110120.0,110110.0,0.72906555]
[1761873641356,0.18276572,110120.0,110110.0,0.54742901]
[1761873641562,0.20905572,110120.0,110110.0,0.49424901]
[1761873642510,0.23534572,110120.0,110110.0,0.43581901]
[1761873644157,0.23534572,110120.0,110110.0,0.09581901]
[1761873644328,0.62771294,110120.0,110110.0,0.09581901]
[1761873644740,0.62771294,110120.0,110110.0,0.006]
[1761873645121,0.62771294,110120.0,110110.0,0.002]
[1761873646410,0.18166954,110090.0,110080.0,0.34]
[1761873646543,0.18166954,110090.0,110080.0,0.42981901]
[1761873646544,0.20795954,110090.0,110080.0,0.42981901]
[1761873648043,0.20795954,110090.0,110080.0,0.43581901]
[1761873648881,0.20795954,110090.0,110080.0,0.46936901]
[1761873649932,0.20795954,110090.0,110080.0,0.51905901]
[1761873650142,0.22110954,110090.0,110080.0,0.49405901]
[1761873650349,0.22110954,110090.0,110080.0,0.88642623]
[1761873651844,0.22110954,110090.0,110080.0,0.93611623]
[1761873652268,0.19503819,110100.0,110080.0,1.11780227]
[1761873652443,0.19503819,110100.0,110090.0,0.14805901]
[1761873652631,0.22132819,110100.0,110090.0,0.08981901]
[1761873652840,0.22132819,110100.0,110090.0,0.14805901]
[1761873653241,0.22132819,110100.0,110090.0,0.08981901]
[1761873653731,0.22132819,110100.0,110090.0,0.09081901]
[1761873653881,0.24761819,110100.0,110090.0,0.09081901]
[1761873655734,0.24761819,110100.0,110090.0,0.09281901]
[1761873656176,0.24761819,110100.0,110090.0,0.09081901]
[1761873661786,0.63998541,110100.0,110090.0,0.001]
[1761873664373,0.24761819,110100.0,110090.0,0.001]
[1761873665537,0.63998541,110100.0,110090.0,0.001]
[1761873667377,0.63998541,110100.0,110090.0,1e-08]
[1761873667573,3.62607571,110100.0,110090.0,1e-08]
[1761873667811,3.6360757,110100.0,110090.0,1e-08]
[1761873668381,0.18171906,110060.0,110050.0,0.0012668]
[1761873668605,0.60037628,110060.0,110050.0,0.0012668]
[1761873668807,0.62666628,110060.0,110050.0,0.0012668]
[1761873669018,0.62666628,110060.0,110030.0,0.34]
[1761873669019,0.18175209,110040.0,110030.0,0.34]
[1761873669257,0.60040931,110040.0,110030.0,0.08981901]
[1761873669483,0.23433209,110040.0,110030.0,0.08981901]
[1761873669660,0.23433209,110040.0,110030.0,0.11725689]
[1761873670071,0.23433209,110040.0,110030.0,0.08995062]
[1761873671107,0.23433209,110040.0,110030.0,0.09295062]
[1761873671517,0.62669931,110040.0,110030.0,0.00113161]
[1761873671724,0.23433209,110040.0,110030.0,0.00113161]
[1761873671953,0.62669931,110040.0,110030.0,0.00313161]
[1761873672530,0.23433209,110040.0,110030.0,0.00313161]
[1761873672722,0.62669931,110040.0,110030.0,0.00313161]
[1761873672926,0.61610114,110040.0,110030.0,0.00313161]
[1761873673340,0.61610114,110040.0,110030.0,0.00213161]
[1761873673754,0.61610114,110040.0,110030.0,0.00013161]
[1761873674150,0.22373392,110040.0,110030.0,0.00013161]
[1761873674351,0.61610114,110040.0,110030.0,0.00013161]
[1761873674776,0.18180165,110010.0,110000.0,0.39200385]
[1761873675009,0.18180165,110010.0,110000.0,0.48196774]
[1761873675216,0.19312165,110010.0,110000.0,0.51339774]
[1761873676265,0.20475165,110010.0,110000.0,0.11727774]
[1761873676571,0.20475165,110010.0,109980.0,0.001]
[1761873676572,0.18186778,109970.0,109960.0,0.0004]
[1761873676757,0.18186778,109970.0,109960.0,0.09070263]
[1761873676758,0.597495,109970.0,109960.0,0.09070263]
[1761873676989,0.609125,109970.0,109960.0,0.09070263]
[1761873677225,0.609125,109970.0,109960.0,0.00088362]
[1761873677619,0.21675778,109970.0,109960.0,0.00088362]
[1761873677822,0.609125,109970.0,109960.0,0.00088362]
[1761873678111,0.609125,109970.0,109960.0,0.00388362]
[1761873679281,0.90435455,109970.0,109960.0,0.00388362]
[1761873680225,0.99417356,109970.0,109960.0,0.00388362]
[1761873680568,0.99417356,109970.0,109960.0,0.00387616]
[1761873680767,0.30957679,109970.0,109960.0,0.00287616]
[1761873680975,0.90735455,109970.0,109960.0,0.00287616]
[1761873681180,0.90435455,109970.0,109960.0,0.00287616]
[1761873681636,0.90735455,109970.0,109960.0,0.00287616]
[1761873681836,0.21975778,109970.0,109960.0,0.00287616]
[1761873683043,0.21675778,109970.0,109960.0,0.00287616]
[1761873683388,0.21875778,109970.0,109960.0,0.00287616]
[1761873683826,0.21675778,109970.0,109960.0,0.00287616]
[1761873684114,0.90435455,109970.0,109960.0,0.00287616]
[1761873684321,0.90535455,109970.0,109960.0,0.00287616]
[1761873684725,0.18190086,109950.0,109940.0,0.0004]
[1761873684927,0.19353086,109950.0,109940.0,0.00053151]
[1761873685204,0.20516086,109950.0,109940.0,0.00053151]
[1761873685771,0.19353086,109950.0,109940.0,0.00053151]
[1761873685954,0.19353086,109950.0,109940.0,0.12457052]
[1761873686181,0.18190086,109950.0,109940.0,0.17429052]
[1761873686447,0.19353086,109950.0,109940.0,0.12457052]
[1761873686816,0.19353086,109950.0,109940.0,0.12757052]
[1761873686996,0.20516086,109950.0,109940.0,0.03086418]
[1761873687419,0.20516086,109950.0,109940.0,0.00353151]
[1761873687896,0.20516086,109950.0,109940.0,0.00153151]
[1761873688083,0.19353086,109950.0,109940.0,0.00053151]
[1761873688327,0.19353086,109950.0,109940.0,0.12557052]
[1761873688540,0.18190086,109950.0,109940.0,0.12557052]
[1761873688735,0.19353086,109950.0,109940.0,0.12557052]
[1761873689474,0.19353086,109950.0,109940.0,0.15290219]
[1761873689798,0.19353086,109950.0,109940.0,0.11868219]
[1761873690002,0.20516086,109950.0,109940.0,0.11868219]
[1761873690400,0.20516086,109950.0,109940.0,0.11912524]
[1761873690969,0.20516086,109950.0,109940.0,0.02930623]
[1761873691175,0.20516086,109950.0,109940.0,0.00197456]
[1761873692581,0.19353086,109950.0,109940.0,0.03519456]
[1761873693016,0.19453086,109950.0,109940.0,0.09079357]
[1761873693211,0.19453086,109950.0,109940.0,0.12501357]
[1761873693413,0.19453086,109950.0,109940.0,0.09079357]
[1761873693759,0.19353086,109950.0,109940.0,0.12501357]
[1761873693887,0.19353086,109950.0,109940.0,0.12601357]
[1761873694291,0.19353086,109950.0,109940.0,0.12501357]
[1761873694786,0.19353086,109950.0,109940.0,0.09079357]
[1761873695424,0.19353086,109950.0,109940.0,0.12501357]
[1761873695614,0.19353086,109950.0,109940.0,0.12801357]
[1761873696434,0.19353086,109950.0,109940.0,0.09379357]
[1761873696638,0.20516086,109950.0,109940.0,0.09379357]
[1761873696960,0.19353086,109950.0,109940.0,0.09379357]
[1761873697500,0.19353086,109950.0,109940.0,0.00397456]
[1761873697501,0.20516086,109950.0,109940.0,0.00397456]
[1761873698722,0.19353086,109950.0,109940.0,0.00397456]
[1761873699460,0.20516086,109950.0,109940.0,0.00397456]
[1761873702151,0.18189835,109960.0,109940.0,0.57540898]
[1761873702384,0.20259116,109970.0,109950.0,0.7777611]
[1761873702385,0.19096116,109970.0,109950.0,0.7777611]
[1761873702646,0.18186778,109970.0,109960.0,0.82161541]
[1761873702836,0.18186778,109970.0,109960.0,0.91143442]
[1761873703070,0.19017778,109970.0,109960.0,0.93876045]
[1761873703493,0.19017778,109970.0,109960.0,0.49136504]
[1761873703902,0.19017778,109970.0,109960.0,0.67324936]
[1761873704144,0.19016124,109980.0,109960.0,1.17065477]
[1761873704369,0.19016124,109980.0,109970.0,0.14729901]
[1761873704803,0.19847124,109980.0,109970.0,0.14729901]
[1761873705293,0.00831,109980.0,109970.0,0.66916679]
[1761873705487,0.00831,109980.0,109970.0,1.1665722]
[1761873705897,0.00831,109980.0,109970.0,0.72017679]
[1761873706682,0.00831,109980.0,109970.0,0.74749975]
[1761873706866,0.19016124,109980.0,109970.0,0.74749975]
[1761873707046,0.19016124,109980.0,109970.0,0.74849975]
[1761873707964,0.19016124,109980.0,109970.0,0.51662197]
[1761873708485,0.20678124,109980.0,109970.0,0.45914197]
[1761873709141,0.19847124,109980.0,109970.0,0.45914197]
[1761873709341,0.19847124,109980.0,109970.0,0.45814197]
[1761873710192,0.19847124,109980.0,109970.0,0.45714197]
[1761873715560,0.19847124,109980.0,109970.0,0.48994197]
[1761873716289,0.19847124,109980.0,109970.0,0.51462197]
[1761873718155,0.19847124,109980.0,109970.0,0.51562197]
[1761873718364,0.19847124,109980.0,109970.0,0.51762197]
[1761873719406,0.19847124,109980.0,109970.0,0.91107391]
[1761873719771,0.19847124,109980.0,109970.0,0.51762197]
[1761873719971,0.19847124,109980.0,109970.0,0.91107391]
[1761873721706,0.19847124,109980.0,109970.0,0.46014197]
[1761873721914,0.20678124,109980.0,109970.0,0.43281901]
[1761873722540,0.19847124,109980.0,109970.0,0.46561901]
[1761873722754,0.18185124,109980.0,109970.0,1.11562873]
[1761873722961,0.18185124,109980.0,109970.0,0.5676317]
[1761873723167,0.19016124,109980.0,109970.0,0.91107364]
[1761873724010,0.19016124,109980.0,109970.0,0.4601417]
[1761873725022,0.19847124,109980.0,109970.0,0.4601417]
[1761873725882,0.19847124,109980.0,109970.0,0.43281901]
[1761873728548,0.19016124,109980.0,109970.0,0.43281901]
[1761873728910,0.19016124,109980.0,109970.0,0.46561901]
[1761873729567,0.19016124,109980.0,109970.0,0.43281901]
[1761873729765,0.59192318,109980.0,109970.0,0.43281901]
[1761873729935,0.19847124,109980.0,109970.0,0.43281901]
[1761873732188,0.19847124,109980.0,109970.0,0.09281901]
[1761873732189,0.59192318,109980.0,109970.0,0.09281901]
[1761873732394,0.98537512,109980.0,109970.0,0.003]
[1761873733995,0.59192318,109980.0,109970.0,0.003]
[1761873734459,0.19016124,109980.0,109970.0,0.003]
[1761873734652,0.19454124,109980.0,109970.0,0.003]
[1761873734863,0.58799318,109980.0,109970.0,0.003]
[1761873735367,0.19454124,109980.0,109970.0,0.003]
[1761873736060,0.64174876,109980.0,109970.0,0.003]
[1761873737454,0.18188432,109960.0,109950.0,0.3402215]
[1761873737673,0.18188432,109960.0,109950.0,0.43004051]
[1761873737674,0.18550432,109960.0,109950.0,0.43004051]
[1761873738180,0.18912432,109960.0,109950.0,0.09004051]
[1761873738387,0.18912432,109960.0,109950.0,0.0002215]
[1761873739172,0.18912432,109960.0,109950.0,0.0012215]
[1761873739957,0.63633184,109960.0,109950.0,0.0012215]
[1761873740355,0.18912432,109960.0,109950.0,0.0012215]
[1761873740918,0.63633184,109960.0,109950.0,0.0002215]
[1761873741927,0.64560052,109960.0,109950.0,0.0002215]
[1761873743862,0.73541953,109960.0,109950.0,0.0002215]
[1761873745511,0.18912432,109960.0,109950.0,0.0002215]
[1761873745716,0.63633184,109960.0,109950.0,0.0002215]
[1761873750172,0.45335247,109960.0,109950.0,0.0002215]
[1761873750635,0.63523679,109960.0,109950.0,0.0002215]
[1761873751013,0.7250558,109960.0,109950.0,0.0002215]
[1761873753402,0.7250558,109960.0,109950.0,1e-08]
[1761873753403,1.2084456,109960.0,109950.0,1e-08]
[1761873753611,1.58380546,109960.0,109950.0,1e-08]
[1761873754792,1.13659794,109960.0,109950.0,1e-08]
[1761873755205,1.11123807,109960.0,109950.0,1e-08]
[1761873755449,1.45165591,109960.0,109950.0,1e-08]
[1761873756506,0.66403055,109960.0,109950.0,1e-08]
[1761873756704,1.45165591,109960.0,109950.0,1e-08]
[1761873757420,1.05789496,109960.0,109950.0,1e-08]
[1761873763332,1.45175937,109960.0,109950.0,1e-08]
[1761873763506,1.47711924,109960.0,109950.0,1e-08]
[1761873764425,1.08325483,109960.0,109950.0,1e-08]
[1761873764759,1.47711924,109960.0,109950.0,1e-08]
[1761873765002,1.13711924,109960.0,109950.0,1e-08]
[1761873766543,1.47711924,109960.0,109950.0,1e-08]
[1761873766795,1.08325483,109960.0,109950.0,1e-08]
[1761873766974,1.47711924,109960.0,109950.0,1e-08]
[1761873768041,1.48711923,109960.0,109950.0,1e-08]
[1761873774006,0.97962967,109950.0,109940.0,1e-08]
[1761873774249,1.07076868,109950.0,109940.0,1e-08]
[1761873774684,0.66690428,109950.0,109940.0,1e-08]
[1761873775646,1.09695097,109950.0,109940.0,1e-08]
[1761873775851,1.09695097,109950.0,109940.0,0.00100001]
[1761873776246,1.09695097,109950.0,109940.0,1e-08]